[Event "LR Global GM Aspirant-1 2024"]
[Site "Dhaka"]
[Date "2024.02.16"]
[Round "6.5"]
[White "Aradhya, Garg"]
[Black "Mayank Chakraborty"]
[Result "1/2-1/2"]
[ECO "D31"]
[WhiteElo "2390"]
[BlackElo "2409"]
[Annotator "TA"]
[PlyCount "129"]
[EventDate "2024.02.12"]
[EventType "tourn"]
[EventCountry "BAN"]
[SourceTitle "playchess.com"]
[Source "ChessBase"]
[SourceQuality "1"]
[TimeControl "5400+30"]

{[%evp 49,129,-3,0,-15,-2,-14,-10,-17,0,0,-2,-4,-5,-6,-6,-6,6,0,12,0,7,0,8,8,8,8,8,0,8,2,5,0,0,0,15,0,8,13,25,16,15,17,19,8,20,0,0,0,0,0,0,0,0,0,0,-9,-4,-68,0,0,0,0,0,0,0,0,0,0,0,0,0,0,8,8,8,8,8,8,8,8,11,11]} 1. d4 {[%emt 0:00:02]} d5 {[%emt 0:00:06]} 2. c4 {[%emt 0:00:07]} e6 {[%emt 0:00:04]} 3. Nc3 {[%emt 0:00:05]} Bb4 {[%emt 0:00:04]} 4. e3 {[%emt 0:04:19]} Ne7 {[%emt 0:02:43]} 5. Nf3 {[%emt 0:00:51]} O-O {[%emt 0:00:18]} 6. Bd2 {[%emt 0:08:21] D31: Queen's Gambit Declined: Semi-Slav without ...Nf6 (+ Marshall Gambit and Noteboom) and Exchange Variation lines without ...Nf6.} b6 {[%emt 0:03:30]} 7. a3 {[%emt 0:01:40]} Bxc3 {[%emt 0:00:18]} 8. Bxc3 {[%emt 0:00:02]} Ba6 {[%emt 0:00:49]} 9. b3 {[%emt 0:00:37]} Nd7 {[%emt 0:05:37]} 10. Rc1 $146 {[%emt 0:00:40]} ({Predecessor:} 10. Bd3 c5 11. cxd5 Bxd3 12. Qxd3 Nxd5 13. Bb2 cxd4 14. Qxd4 Qf6 15. Qxf6 N5xf6 16. Ke2 {½-½ Vykouk,J (2430)-Ovsejevitsch,S (2601) Ceske Budejovice 2017 (2)}) 10... Rc8 {[%emt 0:04:31]} 11. Bd3 {[%emt 0:14:27]} Bb7 {[%emt 0:07:29]} 12. c5 {[%emt 0:05:03]} bxc5 {[%emt 0:21:20]} 13. dxc5 {[%emt 0:00:08]} Nxc5 {[%emt 0:01:12]} 14. Bxh7+ {[%emt 0:02:45]} Kxh7 {[%emt 0:00:15]} 15. Qd4 {[%emt 0:14:18]} Nf5 {[%emt 0:05:04]} 16. Qxc5 {[%emt 0:00:10]} Qd6 {[%emt 0:06:12]} 17. Bb4 {[%emt 0:00:54]} Qa6 {[%emt 0:01:18]} 18. Nd4 {[%emt 0:09:31]} Rfe8 {[%emt 0:08:08]} 19. Nc6 {[%emt 0:06:34]} Bxc6 {[%emt 0:12:44]} 20. Qxc6 {[%emt 0:01:36]} Qb6 {[%emt 0:00:23]} 21. Qc5 {[%emt 0:09:20]} Qa6 {[%emt 0:03:50]} 22. Qc6 {[%emt 0:00:12]} Qb6 {[%emt 0:00:09]} 23. Qc5 {[%emt 0:00:19]} Nd6 {[%emt 0:00:28]} 24. Qc2+ {[%emt 0:00:26]} Kg8 {[%emt 0:02:16]} 25. Bc5 {[%emt 0:00:59]} Qa5+ {[%emt 0:01:09]} 26. b4 {[%emt 0:02:25]} Qa6 {[%emt 0:01:19]} 27. Qe2 {[%emt 0:01:18]} Qxa3 {[%emt 0:04:34]} 28. O-O {[%emt 0:00:02]} Qa4 {[%emt 0:03:24]} 29. Ra1 {[%emt 0:00:45]} Qb5 {[%emt 0:00:04]} 30. Qxb5 {[%emt 0:00:06]} Nxb5 {[%emt 0:00:04]} 31. Bxa7 {[%emt 0:00:08]} Ra8 {[%emt 0:00:25]} 32. Bc5 {[%emt 0:02:08]} f6 {[%emt 0:01:23]} 33. f3 {[%emt 0:01:54]} Kf7 {[%emt 0:00:07]} 34. Kf2 {[%emt 0:00:10]} e5 {[%emt 0:00:24]} 35. Ra5 {[%emt 0:00:36]} Rxa5 {[%emt 0:00:44]} 36. bxa5 {[%emt 0:00:02]} Ra8 {[%emt 0:00:10]} 37. Ra1 {[%emt 0:00:47]} Ra6 {[%emt 0:00:48]} 38. Bb4 {[%emt 0:00:15]} Ke6 {[%emt 0:00:53]} 39. Rc1 {[%emt 0:00:48]} c6 {[%emt 0:00:24]} 40. e4 {[%emt 0:00:44]} Nd4 {[%emt 0:03:30]} 41. h4 {[%emt 0:04:49]} Nb3 {[%emt 0:02:02]} 42. Rc3 {[%emt 0:00:23]} Nd4 $1 {[%emt 0:00:40]} 43. h5 {[%emt 0:01:10]} Nb5 {[%emt 0:00:18]} 44. exd5+ {[%emt 0:00:54]} Kxd5 {[%emt 0:00:27]} 45. Rc5+ {[%emt 0:00:35]} Ke6 {[%emt 0:00:07]} 46. f4 {[%emt 0:01:07]} exf4 {[%emt 0:00:22]} 47. Kf3 {[%emt 0:00:07]} Nc7 {[%emt 0:00:44]} 48. Bd2 {[%emt 0:00:33]} Kd7 {[%emt 0:01:06]} 49. Rc1 {[%emt 0:01:13]} (49. Kxf4 $2 Ne6+ 50. Kf5 Nxc5 $19) 49... Nd5 {[%emt 0:00:13]} 50. Rb1 {[%emt 0:00:22]} (50. Bxf4 Rxa5 51. h6 Ra3+ 52. Kg4 gxh6 53. Bxh6 Ra4+ 54. Kf3 Nc7) 50... Ra7 {[%emt 0:00:47]} 51. Kg4 {[%emt 0:00:36]} c5 {[%emt 0:00:26]} 52. Rc1 {[%emt 0:00:51]} Kc6 {[%emt 0:00:33]} 53. Kf5 {[%emt 0:00:32]} ({White should try} 53. Be1 $11) 53... Kb5 {[%emt 0:00:14]} (53... Re7 $15 54. Re1 (54. Bxf4 Re2 $11) 54... Ne3+ 55. Kg6 c4) 54. Ke6 $11 {[%emt 0:03:17]} Nb4 {[%emt 0:00:39]} 55. Bxf4 {[%emt 0:00:57]} Rxa5 {[%emt 0:00:18]} (55... Kxa5 56. Ra1+ (56. Rxc5+ Kb6 $18) 56... Kb6 57. Rxa7 Kxa7 58. Kf7 $18) 56. Bd6 {[%emt 0:00:25]} Nd3 $1 {[%emt 0:00:11]} 57. Rb1+ {[%emt 0:00:41]} Kc6 {[%emt 0:00:54]} 58. Rb8 {[%emt 0:01:34]} Ra2 {[%emt 0:00:21]} 59. Rc8+ {[%emt 0:00:11]} Kb5 {[%emt 0:00:04]} 60. g3 {[%emt 0:00:16]} Rh2 {[%emt 0:00:21]} 61. g4 {[%emt 0:00:49]} Rg2 {[%emt 0:00:22]} 62. Kf5 {[%emt 0:00:03]} c4 {[%emt 0:00:15]} 63. Rc7 {[%emt 0:00:13]} Rf2+ {[%emt 0:00:37]} 64. Kg6 {[%emt 0:00:51]} Rg2 $1 {[%emt 0:00:40]} 65. Kxg7 {[%emt 0:00:45]} 1/2-1/2

[Event "LR Global GM Aspirant-1 2024"]
[Site "Dhaka"]
[Date "2024.02.17"]
[Round "7.1"]
[White "Mayank Chakraborty"]
[Black "De Silva, L M S T"]
[Result "1/2-1/2"]
[ECO "C47"]
[WhiteElo "2409"]
[BlackElo "2398"]
[Annotator "RC"]
[PlyCount "83"]
[EventDate "2024.02.12"]
[EventType "tourn"]
[EventCountry "BAN"]
[SourceTitle "playchess.com"]
[Source "ChessBase"]
[SourceQuality "1"]
[TimeControl "5400+30"]

1. e4 {[%emt 0:00:03]} e5 {[%emt 0:00:06]} 2. Nf3 {[%emt 0:00:03]} Nc6 {[%emt 0:00:04]} 3. d4 {[%emt 0:00:06]} exd4 {[%emt 0:00:06]} 4. Nxd4 {[%emt 0:00:03]} Nf6 {[%emt 0:00:04]} 5. Nc3 {[%emt 0:00:05]} Bb4 {[%emt 0:00:49]} 6. Nxc6 {[%emt 0:00:05]} bxc6 {[%emt 0:00:04]} 7. Bd3 {[%emt 0:00:05]} d5 {[%emt 0:00:25]} 8. exd5 {[%emt 0:00:05]} O-O {[%emt 0:00:13]} 9. O-O {[%emt 0:00:03]} Bg4 {[%emt 0:00:10]} 10. f3 {[%emt 0:00:53]} Bh5 {[%emt 0:00:06]} 11. Bg5 {[%emt 0:05:15]} Qd6 {[%emt 0:00:08]} 12. Bxf6 {[%emt 0:03:51]} Qxf6 {[%emt 0:01:54]} 13. dxc6 {[%emt 0:00:16]} Bxc3 {[%emt 0:02:30]} 14. bxc3 {[%emt 0:00:06]} Qxc3 {[%emt 0:04:35]} 15. Be4 {[%emt 0:03:01]} Qc5+ {[%emt 0:08:44]} 16. Kh1 {[%emt 0:00:21]} Rad8 {[%emt 0:01:59]} 17. Qe2 {[%emt 0:07:56]} f5 {[%emt 0:07:37]} 18. Bd3 {[%emt 0:00:13]} Qxc6 {[%emt 0:05:44]} 19. Qf2 {[%emt 0:04:07]} a5 {[%emt 0:13:55]} 20. Rae1 {[%emt 0:15:28]} Bg6 {[%emt 0:12:25]} 21. Re5 {[%emt 0:12:39]} Rd5 {[%emt 0:03:22]} 22. Qe2 {[%emt 0:10:03]} Kh8 {[%emt 0:01:04]} 23. Re7 {[%emt 0:01:45]} f4 {[%emt 0:15:23]} 24. Bxg6 {[%emt 0:03:14]} hxg6 {[%emt 0:00:08]} 25. h3 {[%emt 0:08:05]} Rd7 {[%emt 0:11:56]} 26. Re1 {[%emt 0:05:16]} Rxe7 {[%emt 0:00:45]} 27. Qxe7 {[%emt 0:00:58]} Kg8 {[%emt 0:00:02]} 28. Qe4 {[%emt 0:05:53]} Rf6 {[%emt 0:01:17]} 29. Kh2 {[%emt 0:05:46]} Kh7 {[%emt 0:01:36]} 30. Qd4 {[%emt 0:01:32]} Re6 {[%emt 0:04:49]} 31. Rxe6 {[%emt 0:03:56]} Qxe6 {[%emt 0:00:01]} 32. a4 {[%emt 0:02:02]} Qa2 {[%emt 0:01:29]} 33. Qe4 {[%emt 0:00:22]} Qb2 {[%emt 0:01:44]} 34. h4 {[%emt 0:00:44]} Qf6 {[%emt 0:00:38]} 35. Kh3 {[%emt 0:00:57]} Qf5+ {[%emt 0:01:19]} 36. g4 {[%emt 0:01:19]} Qf7 {[%emt 0:00:43]} 37. h5 {[%emt 0:00:14]} Qf6 {[%emt 0:00:33]} 38. c4 {[%emt 0:01:10]} Kh6 {[%emt 0:00:12]} 39. hxg6 {[%emt 0:00:50]} c5 {[%emt 0:00:47]} 40. Qd5 {[%emt 0:00:41]} Qg5 {[%emt 0:00:23]} 41. Qd6 {[%emt 0:00:19]} Qh4+ {[%emt 0:00:12]} 42. Kxh4 {[%emt 0:00:43]} 1/2-1/2

[Event "LR Global GM Aspirant-1 2024"]
[Site "Dhaka"]
[Date "2024.02.17"]
[Round "7.2"]
[White "Murshed, Niaz"]
[Black "Aradhya, Garg"]
[Result "0-1"]
[ECO "A22"]
[WhiteElo "2363"]
[BlackElo "2390"]
[Annotator "RC"]
[PlyCount "74"]
[EventDate "2024.02.12"]
[EventType "tourn"]
[EventCountry "BAN"]
[SourceTitle "playchess.com"]
[Source "ChessBase"]
[SourceQuality "1"]
[TimeControl "5400+30"]

1. c4 {[%emt 0:00:05]} e5 {[%emt 0:02:23]} 2. Nc3 {[%emt 0:00:08]} Nf6 {[%emt 0:00:07]} 3. g3 {[%emt 0:00:06]} Bb4 {[%emt 0:02:32]} 4. Qc2 {[%emt 0:04:25]} Nc6 {[%emt 0:03:21]} 5. Bg2 {[%emt 0:00:22]} O-O {[%emt 0:01:29]} 6. Nd5 {[%emt 0:02:48]} Nxd5 {[%emt 0:04:21]} 7. cxd5 {[%emt 0:00:12]} Ne7 {[%emt 0:05:21]} 8. a3 {[%emt 0:07:20]} Ba5 {[%emt 0:02:06]} 9. e3 {[%emt 0:01:13]} d6 {[%emt 0:00:26]} 10. Ne2 {[%emt 0:00:08]} Bf5 {[%emt 0:00:56]} 11. e4 {[%emt 0:03:48]} Bg6 {[%emt 0:00:05]} 12. O-O {[%emt 0:02:19]} c6 {[%emt 0:11:58]} 13. dxc6 {[%emt 0:01:50]} Nxc6 {[%emt 0:02:42]} 14. b4 {[%emt 0:02:01]} Bb6 {[%emt 0:00:33]} 15. Qb3 {[%emt 0:10:44]} Qf6 {[%emt 0:12:57]} 16. h3 {[%emt 0:04:05]} Qe6 {[%emt 0:03:02]} 17. Rb1 {[%emt 0:04:33]} Rac8 {[%emt 0:01:53]} 18. Qd1 {[%emt 0:05:58]} f5 {[%emt 0:00:35]} 19. d3 {[%emt 0:00:51]} fxe4 {[%emt 0:02:24]} 20. dxe4 {[%emt 0:00:57]} Rxf2 {[%emt 0:09:23]} 21. Rxf2 {[%emt 0:02:01]} Rf8 {[%emt 0:00:05]} 22. Bf4 {[%emt 0:05:24]} Bh5 {[%emt 0:11:03]} 23. Qd2 {[%emt 0:06:37]} Bxf2+ {[%emt 0:04:20]} 24. Kxf2 {[%emt 0:01:04]} exf4 {[%emt 0:00:47]} 25. gxf4 {[%emt 0:01:57]} Qf6 {[%emt 0:06:07]} 26. f5 {[%emt 0:14:02]} Bf7 {[%emt 0:01:34]} 27. Rc1 {[%emt 0:04:15]} Ne5 {[%emt 0:01:34]} 28. Rc7 {[%emt 0:02:49]} d5 {[%emt 0:00:07]} 29. Qd4 {[%emt 0:01:46]} dxe4 {[%emt 0:00:46]} 30. Bxe4 {[%emt 0:00:32]} Rd8 {[%emt 0:00:33]} 31. Qe3 {[%emt 0:01:00]} Nc4 {[%emt 0:01:14]} 32. Qf4 {[%emt 0:05:53]} Re8 {[%emt 0:00:40]} 33. Bf3 {[%emt 0:00:56]} Qb6+ {[%emt 0:04:22]} 34. Rc5 {[%emt 0:02:12]} Ne5 {[%emt 0:00:14]} 35. Qd4 {[%emt 0:01:24]} Nxf3 {[%emt 0:00:59]} 36. Kxf3 {[%emt 0:00:16]} Bh5+ {[%emt 0:00:23]} 37. Kg3 {[%emt 0:00:25]} Bxe2 {[%emt 0:00:53]} 0-1

[Event "LR Global GM Aspirant-1 2024"]
[Site "Dhaka"]
[Date "2024.02.17"]
[Round "7.3"]
[White "Barua, Dibyendu"]
[Black "Siddharth, Jagadeesh"]
[Result "0-1"]
[ECO "C01"]
[WhiteElo "2404"]
[BlackElo "2457"]
[Annotator "TA"]
[PlyCount "94"]
[EventDate "2024.02.12"]
[EventType "tourn"]
[EventCountry "BAN"]
[SourceTitle "playchess.com"]
[Source "ChessBase"]
[SourceQuality "1"]
[TimeControl "5400+30"]

{[%evp 12,94,7,0,20,20,40,26,25,33,35,25,37,17,19,17,26,9,22,0,16,-54,-53,-41,-60,-50,-61,-58,-56,-47,-18,-45,-45,-46,-60,-62,-74,-81,-14,-20,-16,-23,-22,-202,-203,-170,-167,-242,-252,-254,-148,-151,-127,-317,-324,-327,-265,-272,-270,-270,-267,-211,-211,-283,-184,-182,-82,-29990,-29991,-29991,-29988,-29988,-29987,-29989,-29988,-29988,-2860,-2326,-216,-2235,-2000,-1966,-1865,-29989,-29990]} 1. e4 {[%emt 0:00:03]} e6 {[%emt 0:02:15]} 2. d4 {[%emt 0:00:03]} d5 {[%emt 0:00:07]} 3. exd5 {[%emt 0:01:00]} exd5 {[%emt 0:00:07]} 4. Bd3 {[%emt 0:00:03]} Nc6 {[%emt 0:00:19]} 5. c3 {[%emt 0:01:00]} Bd6 {[%emt 0:00:07]} 6. h3 {[%emt 0:02:42]} Nge7 {[%emt 0:00:53]} 7. Qc2 {[%emt 0:05:24] C01: French: Exchange Variation.} Be6 {[%emt 0:03:25]} 8. Ne2 {[%emt 0:03:11]} f6 $146 {[%emt 0:06:54]} ({Predecessor:} 8... Qd7 9. Bf4 Bf5 10. Nd2 O-O-O 11. O-O Bxd3 12. Qxd3 Ng6 13. Bxd6 Qxd6 14. g3 Rde8 {0-1 Caruana,F (2776)-Bluebaum,M (2664) Titled Tuesday intern op 23rd Aug Late blitz 2022 (6)}) 9. Bf4 {[%emt 0:06:26]} g5 {[%emt 0:03:02]} 10. Bxd6 {[%emt 0:01:37]} Qxd6 {[%emt 0:00:07]} 11. Nd2 {[%emt 0:00:22]} O-O-O {[%emt 0:01:34]} 12. O-O-O {[%emt 0:01:31]} Kb8 {[%emt 0:02:46]} 13. Rde1 {[%emt 0:02:00]} Bc8 {[%emt 0:02:31]} 14. Ng3 {[%emt 0:12:45]} h5 {[%emt 0:06:46]} 15. Re3 {[%emt 0:11:06]} g4 {[%emt 0:04:50]} 16. h4 {[%emt 0:11:48]} ({White should try} 16. hxg4 $11 hxg4 17. Rxh8 Rxh8 18. Ndf1) 16... f5 $1 $15 {[%emt 0:01:25]} 17. Bxf5 {[%emt 0:09:03]} Nxf5 {[%emt 0:02:33]} 18. Nxf5 {[%emt 0:00:49]} Qf6 {[%emt 0:00:09]} 19. Ng3 {[%emt 0:00:11]} Qxf2 {[%emt 0:00:14]} 20. Qd3 {[%emt 0:03:59]} Rdf8 {[%emt 0:08:39]} (20... Qxg2 $2 21. Re2 $18) 21. Qe2 {[%emt 0:12:53]} Qf6 {[%emt 0:00:11]} 22. Qe1 {[%emt 0:13:34]} a5 {[%emt 0:04:04]} 23. Kb1 {[%emt 0:00:00]} a4 {[%emt 0:03:21]} 24. a3 {[%emt 0:00:00]} Bf5+ {[%emt 0:03:57]} (24... b6 $17 25. Ka2 Qf2) 25. Nxf5 $11 {[%emt 0:00:00]} Qxf5+ {[%emt 0:00:07]} 26. Ka2 {[%emt 0:00:00]} Qc2 {[%emt 0:00:17]} 27. Qd1 $2 {[%emt 0:00:39]} (27. Re2 $11 {and White has nothing to worry.}) 27... Qxd1 $19 {[%emt 0:00:06]} 28. Rxd1 {[%emt 0:00:04]} Rf2 {[%emt 0:00:06]} 29. g3 {[%emt 0:00:02]} (29. c4 $142) 29... Rhf8 $19 {[%emt 0:01:18]} 30. c4 {[%emt 0:00:44]} Na5 {[%emt 0:04:11]} (30... Nxd4 $19 {Strongly threatening ...Rg2.} 31. cxd5 Nf5) 31. cxd5 {[%emt 0:00:37] [#]} Rg2 $1 {[%emt 0:00:04]} 32. Kb1 $2 {[%emt 0:01:03]} (32. Re5 $17 {was forced.} b6 (32... Rxg3 33. d6 $16) 33. d6 cxd6 34. Rb5) 32... Rff2 $19 {[%emt 0:00:44]} 33. Kc1 {[%emt 0:00:02]} Nb3+ {[%emt 0:02:19]} 34. Nxb3 {[%emt 0:00:38]} Rc2+ {[%emt 0:00:04]} (34... axb3 35. Rxb3 Rf3 36. Rxf3 gxf3 37. Rf1 Rxg3 38. Kd2 $11) 35. Kb1 {[%emt 0:00:04]} Rxb2+ {[%emt 0:00:06]} (35... axb3 36. Rxb3 Rcd2 37. Re1 $16 (37. Rxd2 Rxd2 38. Rb5 Rg2 $16)) 36. Ka1 {[%emt 0:00:08]} axb3 {[%emt 0:02:19]} (36... Rxb3 37. Rxb3 axb3 38. Rd3 $17) 37. a4 {[%emt 0:00:58]} Ka7 {[%emt 0:00:26]} 38. Rc3 {[%emt 0:00:51]} Kb6 {[%emt 0:02:49]} (38... Ra2+ $19 39. Kb1 Rab2+ (39... Rxa4 40. Rxb3 Re2 41. Rc3 $11) 40. Kc1 Kb8) 39. a5+ $2 {[%emt 0:00:22][%mdl 8192] [#]} (39. Rdd3 $17) 39... Kb5 $1 {[%emt 0:00:17]} (39... Kxa5 40. Rxc7 Ra2+ 41. Kb1 $19) 40. a6 {[%emt 0:00:33]} bxa6 {[%emt 0:02:30]} 41. Rxc7 {[%emt 0:00:06]} Ra2+ {[%emt 0:03:44]} 42. Kb1 {[%emt 0:00:02]} Rgb2+ {[%emt 0:00:07]} (42... Rxg3 43. d6 Kb6 44. Rdc1 $11) 43. Kc1 {[%emt 0:00:06]} Rc2+ {[%emt 0:00:04]} (43... Rh2 $142 44. Kb1 Rhb2+ 45. Kc1 Kb4 46. Rd3 Ka3 47. Rxb3+ Kxb3 48. Rb7+ Kc3 49. Rxb2 Rxb2 50. Kd1 Rd2+ (50... Kxd4 {leads to mate.} 51. Kc1 Kc3 52. Kd1 Rd2+ 53. Ke1 Kd3 54. Kf1 Ke3 55. Ke1 Rxd5 56. Kf1 Kf3 57. Kg1 Kxg3 58. Kf1 Re5 59. Kg1 Re1#) 51. Ke1 Kd3 (51... Rxd4 {is a self mate.} 52. Ke2 Rxd5 53. Ke3 a5 54. Kf4 Rc5 55. Ke3 a4 56. Kf2 Kd3 57. Kg2 a3 58. Kh1 a2 59. Kg1 a1=Q+ 60. Kh2 Rc2#) 52. Kf1 Kxd4 53. Kg1 Ke4 (53... Kxd5 54. Kf1 Ke4 55. Ke1 Ke3 56. Kf1 Kf3 57. Kg1 Rc2 58. Kh1 Kxg3 59. Kg1 Rc1#) 54. Kh1 Kf3 (54... Kxd5 55. Kg1 Ke4 56. Kf1 Kf3 57. Kg1 Rc2 58. Kh1 Kxg3 59. Kg1 Rc1#) 55. Kg1 Kxg3 (55... Rxd5 {gets mated.} 56. Kh2 Kf2 57. Kh1 Kxg3 58. Kg1 Rd1#) 56. Kf1 Kf3 (56... Rxd5 57. Ke2 Kf4 58. Kf2 g3+ 59. Ke2 a5 60. Kf1 Kf3 61. Ke1 a4 62. Kf1 Rd1#) 57. Ke1 Rxd5 58. Kf1 Rd1#) 44. Rxc2 $19 {[%emt 0:00:06]} Rxc2+ {[%emt 0:00:03]} 45. Kb1 {[%emt 0:00:06]} a5 {[%emt 0:00:09]} 46. Rf1 {[%emt 0:01:57]} a4 {[%emt 0:00:06]} 47. Rf8 {[%emt 0:00:20]} a3 {[%emt 0:01:14]} 0-1

[Event "LR Global GM Aspirant-1 2024"]
[Site "Dhaka"]
[Date "2024.02.17"]
[Round "7.4"]
[White "Rahman, Ziaur"]
[Black "Mohammad Fahad, Rahman"]
[Result "1-0"]
[ECO "D45"]
[WhiteElo "2428"]
[BlackElo "2418"]
[Annotator "TA"]
[PlyCount "95"]
[EventDate "2024.02.12"]
[EventType "tourn"]
[EventCountry "BAN"]
[SourceTitle "playchess.com"]
[Source "ChessBase"]
[SourceQuality "1"]
[TimeControl "5400+30"]

{[%evp 19,95,0,0,0,14,-7,24,22,53,50,78,85,95,104,101,62,79,1,0,0,58,52,114,40,149,150,176,152,190,128,247,226,384,131,128,127,122,125,424,373,434,451,406,426,365,356,429,440,478,445,511,498,554,546,506,480,792,810,845,807,705,418,675,633,647,645,29959,12701,4818,888,1368,845,1744,1696,5728,5474,29974,29975]} 1. Nf3 {[%emt 0:00:09]} d5 {[%emt 0:00:17]} 2. e3 {[%emt 0:01:05]} Nf6 {[%emt 0:00:19]} 3. c4 {[%emt 0:00:06]} e6 {[%emt 0:00:06]} 4. Nc3 {[%emt 0:00:12]} c6 {[%emt 0:01:16]} 5. b3 {[%emt 0:00:09]} Bd6 {[%emt 0:00:15]} 6. Bb2 {[%emt 0:00:15]} O-O {[%emt 0:00:15]} 7. Be2 {[%emt 0:02:21]} b6 {[%emt 0:04:28]} 8. d4 {[%emt 0:00:18]} Bb7 {[%emt 0:00:28]} 9. O-O {[%emt 0:00:09]} Nbd7 {[%emt 0:00:11]} 10. Qc2 {[%emt 0:00:09]} Qe7 {[%emt 0:00:20]} 11. a4 {[%emt 0:00:12]} a6 {[%emt 0:04:59]} 12. Bd3 {[%emt 0:12:22]} dxc4 {[%emt 0:18:55]} 13. bxc4 {[%emt 0:00:30] White has an edge.} c5 {[%emt 0:00:30] [#]} 14. d5 $1 {[%emt 0:00:30]} exd5 {[%emt 0:00:30]} (14... Rab8 15. e4) 15. Nxd5 {[%emt 0:00:30]} Nxd5 {[%emt 0:00:30]} 16. cxd5 {[%emt 0:00:30]} Bxd5 {[%emt 0:00:30]} 17. Bxh7+ {[%emt 0:16:12]} Kh8 {[%emt 0:02:16]} 18. Rfd1 $40 {[%emt 0:00:30][%mdl 128] White attacks.} (18. e4 $16 Bc6 19. Bf5) 18... Bxf3 $11 {[%emt 0:00:30]} 19. gxf3 {[%emt 0:00:30][%cal Bg2f3,Bf3f4][%mdl 32] Qf5 would now be deadly.} Nf6 {[%emt 0:00:30]} (19... Be5 $11 20. Bxe5 Nxe5) 20. Bd3 $14 {[%emt 0:00:30]} Rfd8 {[%emt 0:00:30]} (20... Be5 $14) 21. Qe2 {[%emt 0:00:30]} ({White should try} 21. f4 $16) 21... a5 {[%emt 0:00:30]} ({Better is} 21... Be5 $14) 22. f4 $1 $16 {[%emt 0:00:30]} Rac8 {[%emt 0:00:30]} 23. Ba6 {[%emt 0:00:30] A strong pair of Bishops.} Rb8 {[%emt 0:00:30]} 24. Bc4 {[%emt 0:00:30]} (24. Kh1 $1 $18) 24... Kg8 {[%emt 0:00:30]} (24... Bc7 $16 25. Rac1 Kg8) 25. Kh1 $1 $18 {[%emt 0:00:30][%cal Bg1h1,Bh1g2,Bg2f3][%mdl 32]} Re8 $2 {[%emt 0:00:30] [#]} (25... Qe4+ {is a better defense.} 26. f3 Qh7) 26. Qf3 $2 {[%emt 0:00:30] Active counter play!} (26. Qf1 $1 $18 {and the rest is easy.}) 26... Qe4 $16 {[%emt 0:00:30]} 27. Qxe4 {[%emt 0:00:30]} Nxe4 {[%emt 0:00:30]} 28. Kg2 {[%emt 0:21:11] f3 is the strong threat. Black is weak on the light squares} Red8 $2 {[%emt 0:30:00][%mdl 8192] [#] Black cannot hold the game after this.} (28... Be7 $16) 29. Kf3 $1 $18 {[%emt 0:00:30]} Nf6 {[%emt 0:00:30]} 30. Bxf6 {[%emt 0:01:41]} gxf6 {[%emt 0:00:11]} 31. Rd5 {[%emt 0:01:06]} Kf8 {[%emt 0:07:19]} 32. Rh5 {[%emt 0:01:37]} Ke7 {[%emt 0:00:17]} 33. Rh7 {[%emt 0:00:20]} Rf8 {[%emt 0:00:09]} 34. Rg1 {[%emt 0:00:24]} b5 {[%emt 0:00:06]} 35. axb5 {[%emt 0:01:42]} Rb7 {[%emt 0:00:13]} 36. Ra1 {[%emt 0:01:14]} Bc7 {[%emt 0:00:20]} 37. h4 {[%emt 0:01:01][%cal Bh2h4,Bh4h5,Bh5h6,Bh6h7][%mdl 32]} Bb6 {[%emt 0:00:31]} (37... f5 $142 38. Rh5 (38. h5 Bd8 $18) 38... Kf6) 38. h5 {[%emt 0:00:50]} Rd7 {[%emt 0:00:08]} 39. Rg7 {[%emt 0:01:32]} f5 {[%emt 0:00:14]} 40. Rg5 {[%emt 0:04:25]} Kf6 {[%emt 0:00:31]} (40... Rh8 $142 41. Rxf5 Rh7) 41. h6 {[%emt 0:00:27]} Rh8 {[%emt 0:00:39]} 42. Rh1 {[%emt 0:00:17]} Bd8 {[%emt 0:00:45]} 43. h7 {[%emt 0:00:50] Rg8 would kill now.} Bc7 {[%emt 0:00:18]} 44. Rh6+ {[%emt 0:01:29]} (44. b6 $142 Bxb6 45. Rg8 (45. Rh6+ Ke7 $18) 45... Rxh7 46. Rxh7) 44... Ke7 {[%emt 0:00:30]} 45. Rxf5 {[%emt 0:00:30]} Kf8 {[%emt 0:00:00]} 46. b6 {[%emt 0:02:09]} Bb8 {[%emt 0:00:00]} 47. Rc6 {[%emt 0:01:00] White threatens Rc8+ and mate.} Kg7 {[%emt 0:00:15]} 48. Rg5+ {[%emt 0:00:08] Weighted Error Value: White=0.32/Black=1.02.  Loses game:     	---       	Black=1      Missed win:     	White=1     	---        Mistake:       	White=3     	Black=6      Inaccurate:     	---       	Black=3      OK:         	White=9     	Black=4      Best:        	White=2     	Black=1      Strong:       	White=3     	---        Brilliant:      	White=1     	---} 1-0